Workbook

Sheet 시작
B1: 이 서식 파일 정보
B2: 이 서식 파일을 사용하여 비즈니스 시작 재무 계획을 만듭니다.
B3: 개요 워크시트에서 재무 계획의 개요를 확인하세요.
B4: 시작 비용 템플릿 파일 및 P&L 템플릿 파일 워크시트를 사용하여 시작 비용과 손익을 고려하세요.
B5: 시작 비용 예제 및 P&L 예제 워크시트에는 표에 샘플 데이터가 포함되어 있습니다.
B6: 참고:
B7: 추가적인 지침은 모든 워크시트의 A열에 있습니다. 이 텍스트는 일부러 숨겨 놓았습니다. 텍스트를 제거하려면 A열을 선택한 다음 [삭제]를 선택합니다. 텍스트를 표시하려면 A열을 선택한 다음 글꼴 색상을 변경합니다.
B8: 표에 대해 자세히 알아보려면 표 안에서 Shift 키를 누른 채 F10 키를 누르고 [표] 옵션을 선택한 다음, [대체 텍스트]를 선택합니다.

Sheet 개요
B1: 비즈니스 시작 재무 계획
B2: 재무 계획 작성은 모든 비즈니스 계획이 모이는 지점입니다. 가격과 함께 제품, 대상 시장 및 대상 고객을 식별하면 비용, 매출 및 이익 예측을 시작할 준비가 된 것입니다. 이러한 항목은 가정과 함께 판매 예측을 추정하는 데 도움이 됩니다. 비즈니스의 다른 측면은 발생할 것으로 예상되는 비용입니다. 이것은 언제 수익이 발생하는지 확인하기 위해 지속적으로 중요합니다. 사업을 시작할 때 고객 판매 또는 고객이 창출하는 현금을 받기 전에 자금을 조달해야 하는 비용을 아는 것도 중요합니다.
B3: 예상 시작 비용: 다음 탭의 시작 비용 서식 파일 표는 시작하기 위한 몇 가지 지침이 포함된 빈 서식 파일을 제공합니다. 다음 탭인 시작 비용 예에는 사업을 시작하는 데 필요할 수 있는 지속적인 비용 항목과 일회성 비용 항목의 샘플이 표시됩니다. 많은 기업이 시간이 지남에 따라 신용으로 결제를 받고 현금은 즉시 들어오지 않습니다. 일회성 비용 외에 저축이나 초기 투자로 자금을 조달해야 하는 되풀이 항목의 수개월을 가정하여 현금이 회사에 유입되기 시작할 때를 추정하는 것이 중요합니다.
B4: 예상 손익 모델: P&L 서식 파일 레이블 지정 탭에서 판매 예측과 손익 모델을 수행하기 위한 빈 서식 파일을 찾을 수 있습니다. 다음 탭인 P&L 예제에서는 소규모 비즈니스가 운영되는 첫 12개월 동안 예측하는 예측 샘플을 보여줍니다. 각 모델의 테이블 상단에는 예상 매출과 총 이익이 표시됩니다. 판매 예측을 작성하기 시작하기에 좋은 위치입니다. 아래의 다음 섹션은 같은 달에 예상되는 되풀이 비용을 항목화합니다. 이는 이전 섹션에서 완료한 예상 시작 비용과 일치해야 합니다. 이 모델의 맨 아래에서 언제 수익성이 발생하고 어떤 비용 항목이 수익성에 가장 큰 영향을 미치는지 알 수 있습니다.
B5: 매출 및 매출 원가를 추정하기 위해 가정한 사항을 추적하세요. 아직 운영을 시작하지 않은 비즈니스의 경우 제품 또는 서비스에 대해 이를 추정하는 방법을 이해해야 합니다. 일부 추정 지침은 다음과 같습니다.
B6: 수익: 목표 시장(잠재 고객, 기업 또는 소비자 그룹)에서 첫 해에 이들 중 몇 명이 목표가 될 것인지를 먼저 정하세요. 이 중 몇 퍼센트가 마감될 것으로 예상하십니까? 그들이 귀하의 제품이나 서비스를 구매하기 위한 평균적인 거래는 얼마입니까? 첫 번째 달, 두 번째 달 등에 얼마나 많이 할 수 있습니까? 첫 달에 숫자로 시작하여 백분율(예: 10%)만큼 증가시킬 수 있습니다. 예를 들어, 귀하가 거주하는 마을의 소규모 사업체에 청소 서비스를 판매하고 있으며 서비스가 필요하다고 생각하는 사업체가 500개 있다고 가정합니다. 평균 계약이 월 ₩250인 경우 첫 해 동안 매달 계약에 서명할 수 있는 비즈니스 수를 추정해야 합니다.
B7: 매출원가(COGS): 제품 및 일부 서비스에 대해 계산되어야 합니다. 제품을 생산하는데 포함된 비용입니다. 예를 들어 의류를 판매하는 경우 COGS는 제조업체에서 의류를 구매하기 위해 지불한 가격입니다. 해당 의류를 직접 만든다면 그 옷을 만들기 위한 재료비와 인건비가 될 것입니다. 서비스의 경우 청구 가능한 작업 시간에 대한 직접 인건비가 됩니다. 손익의 총 이익 아래에 있는 모든 것은 임대료, 전화 또는 마케팅과 같은 전체 비즈니스에 대한 고정 또는 간접비입니다.

Sheet 시작 비용 템플릿
B1: 시작 비용
B2: 커피숍 | C2: =TODAY() -> 2022-01-18
B4: 비용 항목 | C4: 월 | D4: 비용/월 | E4: 일회성 비용 | F4: 총 비용
B5: 광고/마케팅 | F5: =(C5*D5)+IF(E5>0,E5,0) -> ₩0
B6: 직원 급여 | F6: =(C6*D6)+IF(E6>0,E6,0) -> ₩0
B7: 직원 급여 세금 및 혜택 | F7: ₩0
B8: 임대/임대 결제/유틸리티 | F8: ₩0
B9: 우편/배송 | F9: ₩0
B10: 예상 시작 예산 | F10: =SUBTOTAL(109,StartUp[총 비용]) -> 0

Sheet 시작 비용 예제
B1: 시작 비용
B2: ='시작 비용 템플릿'!B2 -> 커피숍 | C2: =TODAY() -> 2022-01-18
B4: 비용 항목 | C4: 월 | D4: 비용/월 | E4: 일회성 비용 | F4: 총 비용
B5: 광고/마케팅 | C5: 3 | D5: ₩300 | E5: ₩2,000 | F5: =(C5*D5)+IF(E5>0,E5,0) -> ₩2,900
B6: 직원 급여 | C6: 4 | D6: ₩3,500 | E6: ₩2 | F6: =(C6*D6)+IF(E6>0,E6,0) -> ₩14,002
B7: 직원 급여 세금 및 혜택 | C7: 4 | D7: ₩500 | E7: ₩2,000 | F7: ₩4,000
B8: 임대/임대 결제/유틸리티 | C8: 4 | D8: ₩750 | E8: ₩3,000 | F8: ₩6,000
B9: 우편/배송 | C9: 1 | D9: ₩25 | E9: ₩25 | F9: ₩50
B10: 예상 시작 예산 | F10: =SUM(F6:F9) -> ₩24,052

Sheet P&L 템플릿
B1: 시작 비용
B2: ='시작 비용 템플릿'!B2 -> 커피숍 | C2: =TODAY() -> 2022-01-18
B4: 매출 | C4: 1월 | D4: 2월 | E4: 3월 | F4: 4월 | G4: 5월 | H4: 6월 | I4: 7월 | J4: 8월 | K4: 9월 | L4: 10월 | M4: 11월 | N4: 12월 | O4: YTD
B5: 예상 제품 판매액 | C5: ₩0 | D5: ₩0 | E5: ₩0 | F5: ₩0 | G5: ₩0 | H5: ₩0 | I5: ₩0 | J5: ₩0 | K5: ₩0 | L5: ₩0 | M5: ₩0 | N5: ₩0 | O5: =SUM(C5:N5) -> ₩0
B6: 판매 수익 감소 및 할인 | C6: ₩0 | D6: ₩0 | E6: ₩0 | F6: ₩0 | G6: ₩0 | H6: ₩0 | I6: ₩0 | J6: ₩0 | K6: ₩0 | L6: ₩0 | M6: ₩0 | N6: ₩0 | O6: =SUM(C6:N6) -> ₩0
B7: 서비스 수익 | C7: ₩0 | D7: ₩0 | E7: ₩0 | F7: ₩0 | G7: ₩0 | H7: ₩0 | I7: ₩0 | J7: ₩0 | K7: ₩0 | L7: ₩0 | M7: ₩0 | N7: ₩0 | O7: ₩0
B8: 기타 수익 | C8: ₩0 | D8: ₩0 | E8: ₩0 | F8: ₩0 | G8: ₩0 | H8: ₩0 | I8: ₩0 | J8: ₩0 | K8: ₩0 | L8: ₩0 | M8: ₩0 | N8: ₩0 | O8: ₩0
B9: 순매출 | C9: =SUBTOTAL(109,SampleRevenue[1월]) -> ₩0 | D9: =SUBTOTAL(109,SampleRevenue[2월]) -> ₩0 | E9: =SUBTOTAL(109,SampleRevenue[3월]) -> ₩0 | F9: =SUBTOTAL(109,SampleRevenue[4월]) -> ₩0 | G9: =SUBTOTAL(109,SampleRevenue[5월]) -> ₩0 | H9: =SUBTOTAL(109,SampleRevenue[6월]) -> ₩0 | I9: =SUBTOTAL(109,SampleRevenue[7월]) -> ₩0 | J9: =SUBTOTAL(109,SampleRevenue[8월]) -> ₩0 | K9: =SUBTOTAL(109,SampleRevenue[9월]) -> ₩0 | L9: =SUBTOTAL(109,SampleRevenue[10월]) -> ₩0 | M9: =SUBTOTAL(109,SampleRevenue[11월]) -> ₩0 | N9: =SUBTOTAL(109,SampleRevenue[12월]) -> ₩0 | O9: =SUM(SampleRevenue[[#Totals],[1월]:[12월]]) -> ₩0
B10: 판매 상품 비용 | C10: =C5*0.4 -> ₩0 | D10: ₩0 | E10: ₩0 | F10: ₩0 | G10: ₩0 | H10: ₩0 | I10: ₩0 | J10: ₩0 | K10: ₩0 | L10: ₩0 | M10: ₩0 | N10: ₩0 | O10: ₩0
B11: 매출 총 이익 | C11: =IFERROR(SampleRevenue[[#Totals],[1월]]-C10,"") -> ₩0 | D11: =IFERROR(SampleRevenue[[#Totals],[2월]]-D10,"") -> ₩0 | E11: =IFERROR(SampleRevenue[[#Totals],[3월]]-E10,"") -> ₩0 | F11: =IFERROR(SampleRevenue[[#Totals],[4월]]-F10,"") -> ₩0 | G11: =IFERROR(SampleRevenue[[#Totals],[5월]]-G10,"") -> ₩0 | H11: =IFERROR(SampleRevenue[[#Totals],[6월]]-H10,"") -> ₩0 | I11: =IFERROR(SampleRevenue[[#Totals],[7월]]-I10,"") -> ₩0 | J11: =IFERROR(SampleRevenue[[#Totals],[8월]]-J10,"") -> ₩0 | K11: =IFERROR(SampleRevenue[[#Totals],[9월]]-K10,"") -> ₩0 | L11: =IFERROR(SampleRevenue[[#Totals],[10월]]-L10,"") -> ₩0 | M11: =IFERROR(SampleRevenue[[#Totals],[11월]]-M10,"") -> ₩0 | N11: =IFERROR(SampleRevenue[[#Totals],[12월]]-N10,"") -> ₩0 | O11: ₩0
B13: 경비 | C13: 1월 | D13: 2월 | E13: 3월 | F13: 4월 | G13: 5월 | H13: 6월 | I13: 7월 | J13: 8월 | K13: 9월 | L13: 10월 | M13: 11월 | N13: 12월 | O13: YTD
B14: 급여 및 임금 | C14: ₩0 | D14: ₩0 | E14: ₩0 | F14: ₩0 | G14: ₩0 | H14: ₩0 | I14: ₩0 | J14: ₩0 | K14: ₩0 | L14: ₩0 | M14: ₩0 | N14: ₩0 | O14: =SUM(C14:N14) -> ₩0
B15: 마케팅/광고 | C15: ₩0 | D15: ₩0 | E15: ₩0 | F15: ₩0 | G15: ₩0 | H15: ₩0 | I15: ₩0 | J15: ₩0 | K15: ₩0 | L15: ₩0 | M15: ₩0 | N15: ₩0 | O15: =SUM(C15:N15) -> ₩0
B16: 판매 수수료 | C16: ₩0 | D16: ₩0 | E16: ₩0 | F16: ₩0 | G16: ₩0 | H16: ₩0 | I16: ₩0 | J16: ₩0 | K16: ₩0 | L16: ₩0 | M16: ₩0 | N16: ₩0 | O16: ₩0
B17: 임대료 | C17: ₩0 | D17: ₩0 | E17: ₩0 | F17: ₩0 | G17: ₩0 | H17: ₩0 | I17: ₩0 | J17: ₩0 | K17: ₩0 | L17: ₩0 | M17: ₩0 | N17: ₩0 | O17: ₩0
B18: 기타 1 | C18: ₩0 | D18: ₩0 | E18: ₩0 | F18: ₩0 | G18: ₩0 | H18: ₩0 | I18: ₩0 | J18: ₩0 | K18: ₩0 | L18: ₩0 | M18: ₩0 | N18: ₩0 | O18: ₩0
B19: 경비 합계 | C19: =IF(SUM(C14:C18)=0,"",SUM(C14:C18)) ->  | O19: =SUM(SampleExpenses[[#Totals],[1월]:[12월]]) -> ₩0
B20: 세전 소득 | C20: =IFERROR('P&L 템플릿'!$C$11-SampleExpenses[[#Totals],[1월]],"") ->  | D20: =IFERROR('P&L 템플릿'!$C$11-SampleExpenses[[#Totals],[2월]],"") ->  | E20: =IFERROR('P&L 템플릿'!$C$11-SampleExpenses[[#Totals],[3월]],"") ->  | F20: =IFERROR('P&L 템플릿'!$C$11-SampleExpenses[[#Totals],[4월]],"") ->  | G20: =IFERROR('P&L 템플릿'!$C$11-SampleExpenses[[#Totals],[5월]],"") ->  | H20: =IFERROR('P&L 템플릿'!$C$11-SampleExpenses[[#Totals],[6월]],"") ->  | I20: =IFERROR('P&L 템플릿'!$C$11-SampleExpenses[[#Totals],[7월]],"") ->  | J20: =IFERROR('P&L 템플릿'!$C$11-SampleExpenses[[#Totals],[8월]],"") ->  | K20: =IFERROR('P&L 템플릿'!$C$11-SampleExpenses[[#Totals],[9월]],"") ->  | L20: =IFERROR('P&L 템플릿'!$C$11-SampleExpenses[[#Totals],[10월]],"") ->  | M20: =IFERROR('P&L 템플릿'!$C$11-SampleExpenses[[#Totals],[11월]],"") ->  | N20: =IFERROR('P&L 템플릿'!$C$11-SampleExpenses[[#Totals],[12월]],"") ->  | O20: ₩0
B21: 소득세 경비 | C21: =IFERROR(C20*0.15," ") ->  | D21: =IFERROR(D20*0.15," ") ->  | E21: =IFERROR(E20*0.15," ") ->  | O21: =SUM('P&L 템플릿'!$C$21:$N$21) -> ₩0
B23: 순수입 | C23: =IFERROR(C20-'P&L 템플릿'!$C$21,"") ->  | D23: =IFERROR(D20-'P&L 템플릿'!$D$21,"") ->  | E23: =IFERROR(E20-'P&L 템플릿'!$E$21,"") ->  | F23: =IFERROR(F20-'P&L 템플릿'!$F$21,"") ->  | G23: =IFERROR(G20-'P&L 템플릿'!$G$21,"") ->  | H23: =IFERROR(H20-'P&L 템플릿'!$H$21,"") ->  | I23: =IFERROR(I20-'P&L 템플릿'!$I$21,"") ->  | J23: =IFERROR(J20-'P&L 템플릿'!$J$21,"") ->  | K23: =IFERROR(K20-'P&L 템플릿'!$K$21,"") ->  | L23: =IFERROR(L20-'P&L 템플릿'!$L$21,"") ->  | M23: =IFERROR(M20-'P&L 템플릿'!$M$21,"") ->  | N23: =IFERROR(N20-'P&L 템플릿'!$N$21,"") ->  | O23: =IFERROR(O20-'P&L 템플릿'!$O$21,"") -> ₩0

Sheet P&L 예제
B1: 시작 비용
B2: ='시작 비용 템플릿'!B2 -> 커피숍 | C2: =TODAY() -> 2022-01-18
B4: 매출 | C4: 1월 | D4: 2월 | E4: 3월 | F4: 4월 | G4: 5월 | H4: 6월 | I4: 7월 | J4: 8월 | K4: 9월 | L4: 10월 | M4: 11월 | N4: 12월 | O4: YTD
B5: 예상 제품 판매액 | C5: ₩5,000 | D5: ₩13,000 | E5: ₩16,000 | F5: ₩7,000 | G5: ₩14,500 | H5: ₩16,400 | I5: ₩22,500 | J5: ₩23,125 | K5: ₩24,549 | L5: ₩22,000 | M5: ₩25,000 | N5: ₩27,349 | O5: =SUM(C5:N5) -> ₩216,423
B6: 판매 수익 감소 및 할인 | C6: ₩0 | D6: (₩350) | E6: ₩0 | F6: (₩206) | G6: (₩234) | H6: ₩0 | I6: ₩0 | J6: (₩280) | K6: (₩1,200) | L6: (₩1,600) | M6: ₩0 | N6: (₩2,400) | O6: =SUM(C6:N6) -> (₩6,270)
B7: 서비스 수익 | C7: ₩0 | D7: ₩0 | E7: ₩0 | F7: ₩0 | G7: ₩0 | H7: ₩250 | I7: ₩350 | J7: ₩100 | K7: ₩0 | L7: ₩0 | M7: ₩1,245 | N7: ₩1,360 | O7: ₩3,305
B8: 기타 수익 | C8: ₩0 | D8: ₩0 | E8: ₩0 | F8: ₩0 | G8: ₩0 | H8: ₩0 | I8: ₩0 | J8: ₩1,500 | K8: ₩0 | L8: ₩0 | M8: ₩0 | N8: ₩0 | O8: ₩1,500
B9: 순매출 | C9: =SUBTOTAL(109,ActualRevenue[1월]) -> ₩5,000 | D9: =SUBTOTAL(109,ActualRevenue[2월]) -> ₩12,650 | E9: =SUBTOTAL(109,ActualRevenue[3월]) -> ₩16,000 | F9: =SUBTOTAL(109,ActualRevenue[4월]) -> ₩6,794 | G9: =SUBTOTAL(109,ActualRevenue[5월]) -> ₩14,266 | H9: =SUBTOTAL(109,ActualRevenue[6월]) -> ₩16,650 | I9: =SUBTOTAL(109,ActualRevenue[7월]) -> ₩22,850 | J9: =SUBTOTAL(109,ActualRevenue[8월]) -> ₩24,445 | K9: =SUBTOTAL(109,ActualRevenue[9월]) -> ₩23,349 | L9: =SUBTOTAL(109,ActualRevenue[10월]) -> ₩20,400 | M9: =SUBTOTAL(109,ActualRevenue[11월]) -> ₩26,245 | N9: =SUBTOTAL(109,ActualRevenue[12월]) -> ₩26,309 | O9: =SUM(ActualRevenue[[#Totals],[1월]:[12월]]) -> ₩214,958
B10: 판매 상품 비용 | C10: =C5*0.4 -> ₩2,000 | D10: ₩5,200 | E10: ₩6,400 | F10: ₩2,800 | G10: ₩5,800 | H10: ₩6,560 | I10: ₩9,000 | J10: ₩9,250 | K10: ₩9,820 | L10: ₩8,800 | M10: ₩10,000 | N10: ₩10,940 | O10: ₩86,569
B11: 매출 총 이익 | C11: =IFERROR(ActualRevenue[[#Totals],[1월]]-C10,"") -> ₩3,000 | D11: =IFERROR(ActualRevenue[[#Totals],[2월]]-D10,"") -> ₩7,450 | E11: =IFERROR(ActualRevenue[[#Totals],[3월]]-E10,"") -> ₩9,600 | F11: =IFERROR(ActualRevenue[[#Totals],[4월]]-F10,"") -> ₩3,994 | G11: =IFERROR(ActualRevenue[[#Totals],[5월]]-G10,"") -> ₩8,466 | H11: =IFERROR(ActualRevenue[[#Totals],[6월]]-H10,"") -> ₩10,090 | I11: =IFERROR(ActualRevenue[[#Totals],[7월]]-I10,"") -> ₩13,850 | J11: =IFERROR(ActualRevenue[[#Totals],[8월]]-J10,"") -> ₩15,195 | K11: =IFERROR(ActualRevenue[[#Totals],[9월]]-K10,"") -> ₩13,529 | L11: =IFERROR(ActualRevenue[[#Totals],[10월]]-L10,"") -> ₩11,600 | M11: =IFERROR(ActualRevenue[[#Totals],[11월]]-M10,"") -> ₩16,245 | N11: =IFERROR(ActualRevenue[[#Totals],[12월]]-N10,"") -> ₩15,369 | O11: ₩128,389
B13: 경비 | C13: 1월 | D13: 2월 | E13: 3월 | F13: 4월 | G13: 5월 | H13: 6월 | I13: 7월 | J13: 8월 | K13: 9월 | L13: 10월 | M13: 11월 | N13: 12월 | O13: YTD
B14: 급여 및 임금 | C14: ₩2,500 | D14: ₩2,500 | E14: ₩3,500 | F14: ₩5,000 | G14: ₩5,000 | H14: ₩5,000 | I14: ₩8,000 | J14: ₩9,000 | K14: ₩9,000 | L14: ₩9,000 | M14: ₩9,000 | N14: ₩9,000 | O14: =SUM(C14:N14) -> ₩76,500
B15: 마케팅/광고 | C15: ₩400 | D15: ₩450 | E15: ₩450 | F15: ₩450 | G15: ₩900 | H15: ₩900 | I15: ₩900 | J15: ₩900 | K15: ₩900 | L15: ₩900 | M15: ₩1,200 | N15: ₩1,200 | O15: =SUM(C15:N15) -> ₩9,550
B16: 판매 수수료 | C16: ₩250 | D16: ₩650 | E16: ₩800 | F16: ₩350 | G16: ₩725 | H16: ₩820 | I16: ₩1,125 | J16: ₩1,156 | K16: ₩1,227 | L16: ₩1,100 | M16: ₩1,250 | N16: ₩1,367 | O16: ₩10,821
B17: 임대료 | C17: ₩1,250 | D17: ₩1,250 | E17: ₩1,250 | F17: ₩1,250 | G17: ₩1,250 | H17: ₩1,250 | I17: ₩1,250 | J17: ₩1,250 | K17: ₩1,250 | L17: ₩1,250 | M17: ₩1,250 | N17: ₩1,250 | O17: ₩15,000
B18: 경비 합계 | C18: =IF(SUM(C14:C17)=0,"",SUM(C14:C17)) -> ₩4,400 | D18: ₩4,850 | E18: ₩6,000 | F18: ₩7,050 | G18: ₩7,875 | H18: ₩7,970 | I18: ₩11,275 | J18: ₩12,306 | K18: ₩12,377 | L18: ₩12,250 | M18: ₩12,700 | N18: ₩12,817 | O18: =SUM(ActualExpenses[[#Totals],[1월]:[12월]]) -> ₩111,871
B19: 세전 소득 | C19: =IFERROR('P&L 예제'!$C$11-ActualExpenses[[#Totals],[1월]],"") -> (₩1,400) | D19: =IFERROR('P&L 예제'!$D$11-ActualExpenses[[#Totals],[2월]],"") -> ₩2,600 | E19: =IFERROR('P&L 예제'!$E$11-ActualExpenses[[#Totals],[3월]],"") -> ₩3,600 | F19: =IFERROR('P&L 예제'!$F$11-ActualExpenses[[#Totals],[4월]],"") -> (₩3,056) | G19: =IFERROR('P&L 예제'!$G$11-ActualExpenses[[#Totals],[5월]],"") -> ₩591 | H19: =IFERROR('P&L 예제'!$H$11-ActualExpenses[[#Totals],[6월]],"") -> ₩2,120 | I19: =IFERROR('P&L 예제'!$I$11-ActualExpenses[[#Totals],[7월]],"") -> ₩2,575 | J19: =IFERROR('P&L 예제'!$J$11-ActualExpenses[[#Totals],[8월]],"") -> ₩2,889 | K19: =IFERROR('P&L 예제'!$K$11-ActualExpenses[[#Totals],[9월]],"") -> ₩1,152 | L19: =IFERROR('P&L 예제'!$L$11-ActualExpenses[[#Totals],[10월]],"") -> (₩650) | M19: =IFERROR('P&L 예제'!$M$11-ActualExpenses[[#Totals],[11월]],"") -> ₩3,545 | N19: =IFERROR('P&L 예제'!$N$11-ActualExpenses[[#Totals],[12월]],"") -> ₩2,552 | O19: =SUM(C19:N19) -> ₩16,518
B20: 소득세 경비 | C20: =C19*0.15 -> (₩210) | D20: ₩390 | E20: =E19*0.15 -> ₩540 | F20: =F19*0.15 -> (₩458) | G20: =G19*0.15 -> ₩89 | H20: =H19*0.15 -> ₩318 | I20: =I19*0.15 -> ₩386 | J20: =J19*0.15 -> ₩433 | K20: =K19*0.15 -> ₩173 | L20: =L19*0.15 -> (₩98) | M20: =M19*0.15 -> ₩532 | N20: =N19*0.15 -> ₩383 | O20: =SUM('P&L 예제'!$C$20:$N$20) -> ₩2,478
B22: 순수입 | C22: =IFERROR(C19-'P&L 예제'!$C$20," ") -> (₩1,190) | D22: =IFERROR(D19-'P&L 예제'!$D$20," ") -> ₩2,210 | E22: =IFERROR(E19-'P&L 예제'!$E$20,"") -> ₩3,060 | F22: =IFERROR(F19-'P&L 예제'!$F$20,"") -> (₩2,598) | G22: =IFERROR(G19-'P&L 예제'!$G$20,"") -> ₩502 | H22: =IFERROR(H19-'P&L 예제'!$H$20,"") -> ₩1,802 | I22: =IFERROR(I19-'P&L 예제'!$I$20,"") -> ₩2,189 | J22: =IFERROR(J19-'P&L 예제'!$J$20,"") -> ₩2,455 | K22: =IFERROR(K19-'P&L 예제'!$K$20,"") -> ₩979 | L22: =IFERROR(L19-'P&L 예제'!$L$20,"") -> (₩553) | M22: =IFERROR(M19-'P&L 예제'!$M$20,"") -> ₩3,013 | N22: =IFERROR(N19-'P&L 예제'!$N$20,"") -> ₩2,169 | O22: =IFERROR(O19-'P&L 예제'!$O$20,"") -> ₩14,040
